Cogmind - Beta 14 @@@ ROGUE MODE // 2025.04.25 @ 22:11:27 Player: Alex Result: Destroyed by Y-45 Defender with Heavy Assault Rifle Performance ------------- Evolutions (2) 1000 Regions Visited (5) 1000 Robots Destroyed (59) 295 Value Destroyed (1923) 1923 Prototype IDs (9) 180 Alien Tech Used (0) 0 Bonus (481) 481 TOTAL SCORE: 4879 Bonus ------- High Alert Combat Kills 281 Entered Garrisons 200 Cogmind --------- Core Integrity 0/550 Matter 300/300 Energy 100/100 System Corruption 0% Temperature Cool (10) Movement Flying (40) Location -8/Garrison Parts ------- > --- POWER (1) -------- (None) > --- PROPULSION (4) --- Improved Flight Unit > --- UTILITY (4) ------ Machine Analyzer Improved Signal Interpreter Hacking Suite > --- WEAPON (2) ------- (None) > --- INVENTORY (5) ---- Large Storage Unit ECM Suite Mini Grenade Launcher Power Maul Peak State ------------ > --- POWER ------------ Light Deuterium Engine > --- PROPULSION ------- Flight Unit Improved Flight Unit Improved VTOL Module Improved VTOL Module > --- UTILITY ---------- Weight Redist. System Machine Analyzer Advanced Visual Processing Unit Experimental Sensor Array > --- WEAPON ----------- Heavy Assault Rifle Power Maul > --- INVENTORY -------- Large Storage Unit ECM Suite Hacking Suite Missile Launcher [Rating: 38] Favorites ----------- Power Light Ion Engine Engine Light Ion Engine Power Core Light Nuclear Core Propulsion Flight Unit Treads Light Treads Leg Aluminum Leg Flight Unit Flight Unit Utility Weight Redist. System Device Weight Redist. System Storage Small Storage Unit Processor Machine Analyzer Hackware Hacking Suite Weapon Heavy Assault Rifle Energy Gun Backup Laser I Energy Cannon Advanced Beam Cannon Ballistic Gun Heavy Assault Rifle Launcher Mini Grenade Launcher Impact Weapon Power Maul Build | -11 -10 -9 -9 -8 -8 ------- Run | Yrd Mat Mat Min Mat Gar Slots Evolved 4 | . . 2 . 2 . Power . | . . . . . . Propulsion 2 | . . 1 . 1 . Utility 2 | . . 1 . 1 . Weapon . | . . . . . . Parts Attached 67 | 6 7 13 4 32 5 Power 15 | 1 1 4 1 7 1 Engine 12 | 1 1 4 . 6 . Core 3 | . . . 1 1 1 Reactor . | . . . . . . Propulsion 20 | 2 4 3 1 7 3 Treads 2 | 2 . . . . . Leg 2 | . . . . . 2 Wheel . | . . . . . . Hover . | . . . . . . Flight 16 | . 4 3 1 7 1 Utility 13 | 1 2 1 2 7 . Device 6 | . 2 1 1 2 . Storage 3 | 1 . . . 2 . Processor 3 | . . . 1 2 . Hackware 1 | . . . . 1 . Protection . | . . . . . . Artifact . | . . . . . . Weapon 19 | 2 . 5 . 11 1 Energy Gun 2 | . . . . 2 . Energy Cannon 2 | . . . . 1 1 Ballistic Gun 7 | 2 . 4 . 1 . Ballistic Cannon . | . . . . . . Launcher 5 | . . 1 . 4 . Special Weapon . | . . . . . . Impact Weapon 3 | . . . . 3 . Slashing Weapon . | . . . . . . Piercing Weapon . | . . . . . . Special Melee Weapon . | . . . . . . Unidentified Prototypes 7 | . . . 1 6 . Parts Lost 18 | . . . . 9 9 Power 3 | . . . . 1 2 Propulsion 8 | . . . . 4 4 Utility 1 | . . . . . 1 Weapon 6 | . . . . 4 2 Highest Loss Streak 6 | . . . . 5 6 To Critical Strikes . | . . . . . . Average Slot Usage (%) 89 | . 87 98 100 86 83 Engine 7 | . 14 11 . 6 . Core 2 | . . . 10 2 2 Treads 5 | . 21 . . . . Leg 1 | . . . . . 8 Flight 23 | . 5 33 33 30 20 Device 15 | . 5 31 29 16 8 Storage 2 | . 12 . . . . Processor 8 | . . . 3 14 18 Hackware 1 | . . . . . 9 Energy Cannon 1 | . . . . . 7 Ballistic Gun 15 | . 28 18 22 10 . Launcher 3 | . . 3 . 2 8 Peak Build Rating 38 | 6 8 13 24 38 28 Average Rating 18 | 5 6 12 17 29 25 On Entrance 13 | . 6 8 13 24 27 Naked Turns . | . . . . . . Heaviest Build 17 | 12 14 13 14 17 10 Greatest Support 40 | 40 40 18 18 25 25 Greatest Overweight (x) 3 | . 3 . . . . Average Overweight (x) . | . . . . . . Largest Inventory Capacity 15 | 8 8 5 5 15 5 Average Capacity 5 | 7 7 5 5 5 5 Most Carried 8 | 4 8 5 5 5 4 Average Carried 4 | 2 5 4 4 4 4 Final Capacity 8 | 8 5 5 5 5 5 Final Carried 5 | 4 5 5 5 4 4 Class Distribution -------------------- 48% | Mutant 24% | Scavenger-Mutant 23% | Sprinter Dominant Class ---------------- Mutant | -10/Materials Scavenger-Mutant | -9/Materials Scavenger-Mutant | -9/Mines Sprinter | -8/Materials Mutant | -8/Garrison Resources | -11 -10 -9 -9 -8 -8 ----------- Run | Yrd Mat Mat Min Mat Gar Matter Collected 1800 | 260 92 395 40 718 295 Remotely . | . . . . . . Salvage Created 1969 | . 132 404 100 880 453 Parts 145 | . 10 44 8 58 25 Haulers Intercepted 6 | . 1 1 . 4 . Recyclers Shooed 1 | . . 1 . . . Parts Field Recycled . | . . . . . . Retrieved Matter . | . . . . . . Parts Self-Destructed . | . . . . . . Prevented . | . . . . . . Kills | -11 -10 -9 -9 -8 -8 ------- Run | Yrd Mat Mat Min Mat Gar Combat Hostiles Destroyed 46 | . 4 14 2 16 10 Melee 2 | . . . . 2 . Guns 25 | . 4 11 2 8 . Cannons 2 | . . . . . 2 AOE 16 | . . 3 . 6 7 Classes Destroyed 9 | . 3 3 1 2 . Builder 4 | . . 1 . 3 . Tunneler 1 | . . . 1 . . Hauler 6 | . 1 1 . 4 . Watcher 2 | . . 1 . 1 . Swarmer 16 | . 3 10 . . 3 Grunt 17 | . 1 . 2 9 5 Duelist 1 | . . . . 1 . Sentry 9 | . . 4 . 5 . Hunter 3 | . . . . 1 2 Best Kill Streak 10 | . 2 5 2 10 6 Combat Bots Only 6 | . 2 5 2 6 6 Max Kills in Single Turn 4 | . 1 3 1 4 2 Gunslinging . | . . . . . . Exploded 2 | . . 2 . 1 2 Melee 1 | . . . . 1 . Uniques/NPCs Destroyed . | . . . . . . Combat | -11 -10 -9 -9 -8 -8 -------- Run | Yrd Mat Mat Min Mat Gar Hostile Shots Fired 260 | . 33 47 11 94 75 Missed 87 | . 9 21 1 33 23 Damage Taken 2262 | . 195 334 138 911 684 Core 708 | . 24 101 22 315 246 Absorbed by Shields 29 | . . . . . 29 Regen/Repaired (Parts) 45 | . . . . 45 . Core Remaining (%) 86 | 100 90 . 69 . . Volleys Fired 149 | . 14 27 7 63 38 Largest 2 | . 2 2 2 2 2 Hottest 98 | . 40 56 46 66 98 Shots Fired 261 | . 28 54 14 107 58 Gun 185 | . 28 48 14 95 . Cannon 33 | . . . . . 33 Launcher 43 | . . 6 . 12 25 Special . | . . . . . . Kinetic 175 | . 28 48 14 85 . Thermal 43 | . . . . 10 33 Explosive 43 | . . 6 . 12 25 Electromagnetic . | . . . . . . Robot Hit Streak 14 | . 4 14 8 8 14 Robot Miss Streak 8 | . 2 8 1 3 2 Penetration Max . | . . . . . . Secondary Targets 1 | . . . 1 . . Max Gunslinging Chain 1 | . . . 1 . . Shots Hit Robots 167 | . 13 31 11 75 37 Core Hits 116 | . 7 22 5 45 37 Critical Kills 1 | . . . . . 1 Critical Parts Destroyed . | . . . . . . Critical Strikes 1 | . . . . . 1 Meltdown 1 | . . . . . 1 Melee Attacks 13 | . . . . 13 . Impact 13 | . . . . 13 . Slashing . | . . . . . . Piercing . | . . . . . . Sneak Attacks 1 | . . . . 1 . Combat Hostiles . | . . . . . . Follow-up Attacks . | . . . . . . Damage Inflicted 5046 | . 164 734 156 2361 1631 Guns 1592 | . 164 417 156 855 . Cannons 510 | . . . . . 510 Explosions 2606 | . . 317 . 1168 1121 Melee 338 | . . . . 338 . Ramming . | . . . . . . Kinetic 1536 | . 164 417 156 799 . Thermal 566 | . . . . 56 510 Explosive 2606 | . . 317 . 1168 1121 Electromagnetic . | . . . . . . Impact 338 | . . . . 338 . Slashing . | . . . . . . Piercing . | . . . . . . Highest Corruption 1 | . 1 . . . . Average Corruption 1 | . 1 . . . . Corruption Purged . | . . . . . . Corruption Blocked . | . . . . . . Effects 2 | . 2 . . . . Matter Fused 1 | . 1 . . . . Parts Rejected 1 | . 1 . . . . Overload Shots . | . . . . . . Overflow Damage 117 | . . 7 . 83 27 Projectiles . | . . . . . . Explosions 80 | . . 7 . 46 27 Melee 37 | . . . . 37 . Knockbacks . | . . . . . . Impact . | . . . . . . Kinetic . | . . . . . . Secondary . | . . . . . . Self-Inflicted Damage 257 | . . 85 . . 172 Shots 12 | . . 3 . . 9 Rammed . | . . . . . . Targets Rammed . | . . . . . . Kicked . | . . . . . . Crushed . | . . . . . . Highest Temperature 285 | . . 11 26 46 285 Average Temperature 47 | . . 5 17 14 73 Received Heat Transfer 774 | . 6 54 75 549 90 Siege Activations . | . . . . . . Robots Corrupted . | . . . . . . Combat Hostiles . | . . . . . . Parts Fried . | . . . . . . Impact Corruptions 2 | . . . . 2 . Robots Melted 1 | . . . . . 1 Combat Hostiles 1 | . . . . . 1 Parts Melted 1 | . . . . . 1 Heat Transferred 1147 | . . . . 222 925 Parts Sabotaged . | . . . . . . Parts Stolen . | . . . . . . Parts Stripped . | . . . . . . Power Chain Reactions . | . . . . . . Alert | -11 -10 -9 -9 -8 -8 ------- Run | Yrd Mat Mat Min Mat Gar Peak Influence 992 | . 148 716 349 629 992 Initial 408 | . . 18 279 135 408 Average 365 | . 26 360 342 384 837 Maximum Alert Level 3 | . . 3 1 2 3 Low Security (%) 34 | 100 100 23 . 13 . Level 1 28 | . . 36 100 44 . Level 2 22 | . . 31 . 42 25 Level 3 15 | . . 8 . . 74 Level 4 . | . . . . . . Level 5 . | . . . . . . High Security . | . . . . . . Max Security . | . . . . . . Squads Dispatched 5 | . 1 1 . 3 . Investigation 4 | . 1 1 . 2 . Extermination . | . . . . . . Reinforcement 1 | . . . . 1 . Assault . | . . . . . . Garrison . | . . . . . . Intercept . | . . . . . . Searches Triggered . | . . . . . . Construction Impeded . | . . . . . . Haulers Reinforced . | . . . . . . Active Scanning Responses . | . . . . . . Cargo Convoy Interrupts . | . . . . . . Stealth | -11 -10 -9 -9 -8 -8 --------- Run | Yrd Mat Mat Min Mat Gar Distress Signals 3 | . . 2 . 1 . Communications Jammed . | . . . . . . Distress Signals . | . . . . . . Times Spotted 82 | . 6 22 2 29 23 Peak Tracking Total 9 | . 3 5 2 9 6 Tactical Retreats 12 | . 1 2 . 5 4 Traps | -11 -10 -9 -9 -8 -8 ------- Run | Yrd Mat Mat Min Mat Gar Traps Triggered 5 | . . . . 1 4 Indirectly . | . . . . . . Trap Hack Attempts . | . . . . . . Triggered . | . . . . . . Disarmed . | . . . . . . Reprogrammed 7 | . 1 6 . . . Reused 1 | . . 1 . . . Traps Extracted . | . . . . . . Installed . | . . . . . . Triggered 1 | . . 1 . . . Machines | -11 -10 -9 -9 -8 -8 ---------- Run | Yrd Mat Mat Min Mat Gar Machines Disabled 10 | . . 1 . 4 5 Max in Single Turn 2 | . . 1 . 2 2 Garrison Relay 1 | . . . . . 1 Machines Repaired . | . . . . . . Machines Dismantled . | . . . . . . Machines Sabotaged . | . . . . . . Overloaded Fab Kills . | . . . . . . Hacking | -11 -10 -9 -9 -8 -8 --------- Run | Yrd Mat Mat Min Mat Gar Machines Accessed 16 | . 3 6 . 6 1 Terminals 11 | . 3 5 . 2 1 Fabricators . | . . . . . . Repair Stations 1 | . . . . 1 . Recycling Units 2 | . . 1 . 1 . Scanalyzers 1 | . . . . 1 . Garrison Access 1 | . . . . 1 . Total Hacks 43 | . 10 15 . 16 2 Successful 29 | . 5 12 . 12 . Failed 14 | . 5 3 . 4 2 Catastrophic 4 | . 2 1 . . 1 Database Lockouts . | . . . . . . Manual 16 | . 4 4 . 6 2 Terminals 27 | . 10 12 . 3 2 Fabricators . | . . . . . . Repair Stations 9 | . . . . 9 . Recycling Units 4 | . . 3 . 1 . Scanalyzers 2 | . . . . 2 . Garrison Access 1 | . . . . 1 . Terminal Hacks 16 | . 5 9 . 2 . Record 3 | . . 3 . . . Prototype ID Bank 1 | . 1 . . . . Locate Traps 4 | . 2 2 . . . Reprogram Traps 2 | . 1 1 . . . Recall Reinforcements 1 | . . . . 1 . Zone Layout 5 | . 1 3 . 1 . Fabricator Hacks . | . . . . . . Repair Station Hacks 6 | . . . . 6 . Scan Component 3 | . . . . 3 . Repair 2 | . . . . 2 . Refit 1 | . . . . 1 . Recycling Unit Hacks 4 | . . 3 . 1 . Process 1 | . . 1 . . . Report Inventory 1 | . . 1 . . . Retrieve Matter 1 | . . 1 . . . Retrieve Components 1 | . . . . 1 . Scanalyzer 2 | . . . . 2 . Insert Component 1 | . . . . 1 . Analyze 1 | . . . . 1 . Garrison Access Hacks 1 | . . . . 1 . Unlock Access 1 | . . . . 1 . Unauthorized Hacks . | . . . . . . Terminals . | . . . . . . Fabricators . | . . . . . . Repair Stations . | . . . . . . Recycling Units . | . . . . . . Scanalyzers . | . . . . . . Garrison Access . | . . . . . . Data Cores Recovered . | . . . . . . Used . | . . . . . . Hacking Detections 11 | . 3 4 . 3 1 Full Trace Events 3 | . 1 . . 1 1 Feedback Events 1 | . 1 . . . . Corruption 1 | . 1 . . . . Feedback Blocked . | . . . . . . Robot Schematics Acquired . | . . . . . . Robots Built . | . . . . . . Authchips . | . . . . . . Time . | . . . . . . Total Robot Build Rating . | . . . . . . Part Schematics Acquired 1 | . . . . 1 . Parts Built . | . . . . . . Authchips . | . . . . . . Time . | . . . . . . Total Part Build Rating . | . . . . . . Parts Repaired 1 | . . . . 1 . Time 174 | . . . . 174 . Parts Recycled . | . . . . . . Recycled Matter 41 | . . 41 . . . Retrieved Matter 41 | . . 41 . . . Retrieved Components 1 | . . . . 1 . Parts Scanalyzed 1 | . . . . 1 . Part Schematics Acquired 1 | . . . . 1 . Parts Damaged . | . . . . . . Bothacking | -11 -10 -9 -9 -8 -8 ------------ Run | Yrd Mat Mat Min Mat Gar Used RIF Installer . | . . . . . . Robots Hacked . | . . . . . . Non-combat . | . . . . . . Combat . | . . . . . . Robot Hacks Applied . | . . . . . . Relay Couplers Released 5 | . . . . . 5 Machine Destruction 5 | . . . . . 5 Fabnet Peak Effective % . | . . . . . . Robots Rewired . | . . . . . . Allies Hacked . | . . . . . . Hacks Repelled . | . . . . . . Allies | -11 -10 -9 -9 -8 -8 -------- Run | Yrd Mat Mat Min Mat Gar Total Allies . | . . . . . . Largest Group . | . . . . . . Highest-Rated Group . | . . . . . . Highest-Rated Ally . | . . . . . . Total Orders . | . . . . . . Ally Attacks . | . . . . . . Total Damage . | . . . . . . Kills . | . . . . . . Allies Corrupted . | . . . . . . Allies Melted . | . . . . . . Intel | -11 -10 -9 -9 -8 -8 ------- Run | Yrd Mat Mat Min Mat Gar Robot Analysis Total . | . . . . . . Derelict Logs Recovered . | . . . . . . Drone Launches . | . . . . . . Drone Recoveries . | . . . . . . Exploration | -11 -10 -9 -9 -8 -8 ------------- Run | Yrd Mat Mat Min Mat Gar Turns Passed 2446 | 90 561 379 222 737 457 Spaces Moved 3057 | 51 419 626 565 837 559 Core 5 | 5 . . . . . Treads 285 | 46 239 . . . . Legs 136 | . . . . . 136 Wheels . | . . . . . . Hover . | . . . . . . Flight 2631 | . 180 626 565 837 423 Fastest Speed 28 | 50 37 34 34 28 32 Average Speed 50 | 149 114 34 34 31 55 Slowest Speed 300 | 160 300 34 34 37 120 Overloaded Moves . | . . . . . . Propulsion Burnouts . | . . . . . . Robots Hopped 27 | . . 8 8 5 6 Cave-ins Triggered 1 | . . . . . 1 Exploration Rate (%) 47 | 4 44 38 89 59 50 Regions Visited 5 Branch Regions 1 Pre-discovered Areas . | . . . . . . Known Exits Taken 1 | . . . . 1 . Unknown Exits Taken 4 | 1 1 1 1 . . Scrap Searched 1 | . . . 1 . . Spaces Dug 18 | . . . . 4 14 Terrain Destroyed 222 | . . 56 . 47 119 Melee 4 | . . . . 4 . Projectile 1 | . . . . . 1 AOE 217 | . . 56 . 43 118 Terrain Rammed . | . . . . . . Walls Destroyed . | . . . . . . Machines Disabled . | . . . . . . Actions | -11 -10 -9 -9 -8 -8 --------- Run | Yrd Mat Mat Min Mat Gar Total 3640 | 62 474 732 572 1162 638 Wait 294 | 2 21 60 1 204 6 Move 3000 | 50 418 609 548 826 549 Hop 25 | . . 8 8 5 4 Pick Up 23 | 4 8 4 1 6 . Fast Attach 21 | 6 1 1 . 9 4 Attach 10 | . 2 1 . 7 . Detach 5 | . . . . 5 . Swap 36 | . 4 11 4 16 1 Drop 28 | . 6 11 3 8 . Fire 149 | . 14 27 7 63 38 Melee 13 | . . . . 13 . Ram . | . . . . . . Kick . | . . . . . . Crush . | . . . . . . Escape Stasis 29 | . . . . . 29 Rewire 7 | . . . . . 7 Trap . | . . . . . . Miscellaneous . | . . . . . . Route ------- -11/Scrapyard -10/Materials (discovered 2 exits: *Mat / [*Min]) -9/Materials -9/Mines -8/Materials (discovered 2 exits: [*Fac] / Gar) -8/Garrison (discovered 2 exits: *Mat x2) History --------- Turn | Location | Event 10 | -11/Scrapyard | Discovered new exit (range 16) 91 | -11/Scrapyard | Entered Materials 171 | -10/Materials | Discovered new exit (range 14) 301 | -10/Materials | Build established: Mutant 429 | -10/Materials | Discovered new exit (range 3) 652 | -10/Materials | Entered another Materials area 652 | -9/Materials | Evolved 2 slots: Propulsion x1, Utility x1 839 | -9/Materials | Discovered new exit (range 11) 1031 | -9/Materials | Entered Mines 1069 | -9/Mines | Build established: Scavenger-Mutant 1104 | -9/Mines | Discovered new exit (range 5) 1180 | -9/Mines | Found a damaged Exp. Sensor Array with a note attached 1180 | -9/Mines | Found Prototype Device 1180 | -9/Mines | Identified Exp. Sensor Array 1253 | -9/Mines | Entered Materials 1253 | -8/Materials | Evolved 2 slots: Propulsion x1, Utility x1 1793 | -8/Materials | Discovered new exit (range 16) 1837 | -8/Materials | Repaired Lgt. Deuterium Engine 1877 | -8/Materials | Core integrity fell below 50% 1913 | -8/Materials | Lost 5 parts (1p2n2w) 1990 | -8/Materials | Identified exit to Garrison 1990 | -8/Materials | Entered Garrison 2015 | -8/Garrison | Crushed by falling debris 2071 | -8/Garrison | Discovered new exit (range 9) 2121 | -8/Garrison | Identified exit to Materials 2136 | -8/Garrison | Triggered checkpoint 2159 | -8/Garrison | Garrison Relay disabled 2167 | -8/Garrison | Triggered checkpoint 2185 | -8/Garrison | Core integrity fell below 20% 2343 | -8/Garrison | Discovered exit to Materials (range 10) 2421 | -8/Garrison | Build established: Mutant 2447 | -8/Garrison | Destroyed by Y-45 Defender with Heavy Assault Rifle Last Messages --------------- Field strength at 25. Field strength at 15. Field strength at 5. Stasis field depleted. Triggered Stasis Trap. A bubble of rippling energy engulfs the area. Field strength at 90. Field strength at 80. Field strength at 68. Field strength at 56. Imp. VTOL Module destroyed. Field strength at 47. Field strength at 42. Field strength at 34. Field strength at 29. Field strength at 20. Field strength at 15. Field strength at 5. Stasis field depleted. Aluminum Leg destroyed. Map ----- +----------------------------------------------------+ | ????????????????????????????????# | | ????????????????????????????????# | | ????????????????????????????????########## | | ????????????????????????????????????????## | | ????????????????????????????????????????# | | ????????????????????????????????????????# | | ????????????????????????????????????????# | | ????????????????????????????????????????# | | ????????????????????????????????????????## | | ????????????????????????????????########## | | ????????????????????????????????# | | ????????????????????????????????# | | ????????????????????????????????# ####### | | ????????????????????????????????# #?????? | | ??????????????????????????????### #?????? | | ??????????????????????#########T# ### ##? | | ??????????????????????# + | | ????????????????????### ######### ##### # | | ????????????????????# #???????# #?????? | | ??????????????###???# #???????# ####### | | ?????????????##YY##?# #???????# | | ?????????????# #?### #???????# | | ?????????????# #???# #???????# ####### | | ?????????????# #???# #???????# #?????? | | ?????????????" #####s######??# #?????? | | ?????????????" @ #??# #?????? | | ?????????????#T########## ##??# #?????? | | ?????????????????????????""""#??# #?????? | | ??????????????????????????####??# #?????? | | ????????????????????????????????# #?????? | | ????????????????????????????????# #?????? | | ????????????????????????????????# #?????? | | ???????????????????????########## #?????? | | ???????????????????????# #?????? | | ???????????????????????# #?????? | | ???????????????????????# < ###### #?????? | | ???????????????????????# #????# #####?? | | ???????????????????????#####?#### ### | | ?????????????????????????????# | | ?????????????????????????????# | | ?????????????????????????????# & | | ?????????????????????????????# | | ?????????????????????????????#* &! | | ?????????????????????????????# & = | | ?????????????????????????????# =%%& | | ?????????????????????????????#& & * | | ?????????????????????????????# ! | | ?????????????????????????????# && | | ?????????????????????????????# | | ?????????????????????????????# | +----------------------------------------------------+ Best States ------------- Heat Dissipation 31 Energy Generation 16 Energy Capacity 290 Matter Stores 300 Matter Capacity 300 Sight Range 20 Robot Scan Range 20 Terrain Scan Density 10 ECM Strength 1 Additional Mass Support 6 Evasion (%) 64 Recoil Reduction 2 Offensive Hacking 10 Item Schematics ----------------- Imp. Flight Unit | -8/Materials | Scanalyzed Robot Schematics ------------------ None Fabricated ------------ Nothing Alien Tech Used ----------------- None Achievements -------------- GoHome() Remodeling Unlikely Earthworm Challenges ------------ None Game ------ Seed ThunderTechReconfigurator Manual? 0 Play Time 00:50:48 Cumulative 6.5 hours Start 2025.04.25 @ 21:23:31 End 2025.04.25 @ 22:11:27 Sessions 1 Manual Loads 0 Difficulty Rogue Special Mode None Game No. 8 Rogue 8 Adventurer 0 Explorer 0 Win Type - Total 0 Types 0/0/0/0/0/0/0/0/0 Lore% 3 Gallery% 10 Achievement% 10 Wizard Run 0 Options --------- Layout 1 ASCII 0 Keyboard 1 Movement Numpad Keybinds 0 Fullscreen 1 Font 24/Smallcaps Map View 50x35 Zoom Use 0% Tactical HUD 0 Map Filters NONE Filters NONE Steam 1 RUN: 29442273-569e-452c-b69c-c5dc84aa7b65